fUST/lending_fUST_20250519
["ID","MTS","AMOUNT","RATE_DAILY","PERIOD"]
[361528220,1747599049792,-450.0,0.00014383,2]
[361528222,1747599049802,-450.0,0.00014383,2]
[361528224,1747599049811,-450.0,0.00014383,2]
[361528226,1747599049820,-450.0,0.00014383,2]
[361528228,1747599049829,-1871.7,0.00014383,2]
[361528230,1747599049838,-450.0,0.00014383,2]
[361528232,1747599049848,-450.0,0.00014383,2]
[361528234,1747599049857,-450.0,0.00014383,2]
[361528236,1747599049868,-450.0,0.00014383,2]
[361528238,1747599049877,-450.0,0.00014383,2]
[361528240,1747599049886,-658.62,0.00014383,2]
[361528242,1747599049896,-450.0,0.00014383,2]
[361528244,1747599049905,-450.0,0.00014383,2]
[361528246,1747599049914,-450.0,0.00014383,2]
[361528248,1747599049923,-2922.35,0.00014383,2]
[361528250,1747599049932,-547.54,0.00014383,2]
[361528252,1747599049941,-1200.13,0.00014383,2]
[361528254,1747599049950,-450.0,0.00014383,2]
[361528256,1747599049959,-450.0,0.00014383,2]
[361528257,1747599049968,-450.0,0.00014383,2]
[361528259,1747599049977,-450.0,0.00014383,2]
[361528261,1747599049986,-605.53,0.00014383,2]
[361528263,1747599049995,-450.0,0.00014383,2]
[361528265,1747599050005,-450.0,0.00014383,2]
[361528267,1747599050014,-450.0,0.00014383,2]
[361528269,1747599050023,-476.55,0.00014383,2]
[361528271,1747599050032,-475.35,0.00014383,2]
[361528273,1747599050041,-450.0,0.00014383,2]
[361528275,1747599050050,-474.34,0.00014383,2]
[361528277,1747599050059,-450.0,0.00014383,2]
[361528279,1747599050068,-450.0,0.00014383,2]
[361528281,1747599050077,-450.0,0.00014383,2]
[361528283,1747599050086,-258.25564254,0.00014383,2]
[361528285,1747599050097,-351.05007588,0.00014383,2]
[361528287,1747599050106,-450.0,0.00014383,2]
[361528289,1747599050115,-808.37,0.00014383,2]
[361528291,1747599050124,-450.0,0.00014383,2]
[361528293,1747599050133,-450.0,0.00014383,2]
[361528295,1747599050142,-450.0,0.00014383,2]
[361528297,1747599050151,-462.86,0.00014383,2]
[361528299,1747599050160,-450.0,0.00014383,2]
[361528301,1747599050170,-450.0,0.00014383,2]
[361528303,1747599050179,-202.67525055,0.00014383,2]
[361528305,1747599050188,-450.0,0.00014383,2]
[361528307,1747599050197,-450.0,0.00014383,2]
[361528310,1747599050207,-450.0,0.00014383,2]
[361528312,1747599050216,-325.5498773,0.00014383,2]
[361528314,1747599050225,-800.52,0.00014383,2]
[361528315,1747599050235,-450.0,0.00014383,2]
[361528317,1747599050244,-18118.42,0.000144,2]
[361528319,1747599050254,-1864.0,0.0001447,3]
[361528321,1747599050264,-500.0,0.0001452,2]
[361528324,1747599050274,-450.0,0.0001452,2]
[361528326,1747599050284,-450.0,0.0001452,2]
[361528328,1747599050293,-592.46249306,0.0001452,2]
[361528330,1747599050303,-450.0,0.0001452,2]
[361528332,1747599050312,-450.0,0.0001452,2]
[361528334,1747599050322,-450.0,0.0001452,2]
[361528336,1747599050331,-450.0,0.0001452,2]
[361528338,1747599050341,-160.2,0.0001452,2]
[361528340,1747599050352,-450.0,0.0001452,2]
[361528342,1747599050361,-450.0,0.0001452,2]
[361528344,1747599050371,-450.0,0.0001452,2]
[361528346,1747599050380,-450.0,0.0001452,2]
[361528348,1747599050390,-450.0,0.0001452,2]
[361528350,1747599050400,-450.0,0.0001452,2]
[361528352,1747599050409,-450.0,0.0001452,2]
[361528354,1747599050418,-450.0,0.0001452,2]
[361528356,1747599050428,-450.0,0.0001452,2]
[361528358,1747599050437,-450.0,0.0001452,2]
[361528360,1747599050446,-450.0,0.0001452,2]
[361528362,1747599050456,-450.0,0.0001452,2]
[361528364,1747599050465,-818.48,0.0001452,2]
[361528366,1747599050475,-556.11,0.0001452,2]
[361528368,1747599050484,-450.0,0.0001452,2]
[361528370,1747599050493,-450.0,0.0001452,2]
[361528372,1747599050503,-285.16791057,0.0001452,2]
[361528374,1747599050512,-450.0,0.0001452,2]
[361528376,1747599050522,-450.0,0.0001452,2]
[361528378,1747599050531,-450.0,0.0001452,2]
[361528380,1747599050541,-450.0,0.0001452,2]
[361528381,1747599050550,-450.0,0.0001452,2]
[361528382,1747599050559,-450.0,0.0001452,2]
[361528383,1747599050568,-450.0,0.0001452,2]
[361528384,1747599050578,-450.0,0.0001452,2]
[361528385,1747599050587,-450.0,0.0001452,2]
[361528386,1747599050599,-450.0,0.0001452,2]
[361528387,1747599050608,-198.12629733,0.0001452,2]
[361528388,1747599050617,-450.0,0.0001452,2]
[361528389,1747599050626,-450.0,0.0001452,2]
[361528390,1747599050636,-450.0,0.0001452,2]
[361528391,1747599050645,-450.0,0.0001452,2]
[361528392,1747599050655,-450.0,0.0001452,2]
[361528393,1747599050664,-450.0,0.0001452,2]
[361528394,1747599050673,-450.0,0.0001452,2]
[361528395,1747599050682,-450.0,0.0001452,2]
[361528396,1747599050692,-450.0,0.0001452,2]
[361528397,1747599050705,-511.63,0.0001452,2]
[361528398,1747599050714,-450.0,0.0001452,2]
[361528399,1747599050724,-655.93,0.0001452,2]
[361528400,1747599050734,-450.0,0.0001452,2]
[361528401,1747599050743,-1017.79,0.0001452,2]
[361528402,1747599050753,-450.0,0.0001452,2]
[361528403,1747599050763,-511.13,0.0001452,2]
[361528404,1747599050772,-450.0,0.0001452,2]
[361528405,1747599050782,-450.0,0.0001452,2]
[361528406,1747599050791,-450.0,0.0001452,2]
[361528407,1747599050801,-450.0,0.0001452,2]
[361528408,1747599050810,-450.0,0.0001452,2]
[361528409,1747599050820,-452.55,0.0001452,2]
[361528410,1747599050829,-259.10644891,0.0001452,2]
[361528411,1747599050838,-450.0,0.0001452,2]
[361528413,1747599050848,-565.0,0.0001452,2]
[361528415,1747599050858,-3969.3,0.0001452,2]
[361528417,1747599050869,-450.0,0.0001452,2]
[361528419,1747599050877,-638.0,0.0001452,2]
[361528421,1747599050887,-410.4,0.0001452,2]
[361528423,1747599050896,-450.0,0.0001452,2]
[361528424,1747599050905,-450.0,0.0001452,2]
[361528426,1747599050915,-450.0,0.0001452,2]
[361528428,1747599050924,-450.0,0.0001452,2]
[361528430,1747599050933,-584.07,0.0001452,2]
[361528432,1747599050943,-2973.48,0.0001452,2]
[361528435,1747599050952,-450.0,0.0001452,2]
[361528436,1747599050961,-516.98,0.0001452,2]
[361528438,1747599050970,-903.99,0.0001452,2]
[361528440,1747599050980,-1439.98,0.0001452,2]
[361528442,1747599050989,-450.0,0.0001452,2]
[361528444,1747599050999,-450.0,0.0001452,2]
[361528446,1747599051008,-346.393546,0.0001452,2]
[361528448,1747599051017,-450.0,0.0001452,2]
[361528450,1747599051027,-450.0,0.0001452,2]
[361528452,1747599051036,-1871.7,0.0001452,2]
[361528454,1747599051045,-450.0,0.0001452,2]
[361528456,1747599051055,-450.0,0.0001452,2]
[361528458,1747599051064,-450.0,0.0001452,2]
[361528460,1747599051074,-450.0,0.0001452,2]
[361528462,1747599051083,-450.0,0.0001452,2]
[361528464,1747599051092,-658.62,0.0001452,2]
[361528466,1747599051105,-450.0,0.0001452,2]
[361528468,1747599051114,-450.0,0.0001452,2]
[361528470,1747599051123,-450.0,0.0001452,2]
[361528472,1747599051132,-2922.35,0.0001452,2]
[361528474,1747599051141,-547.54,0.0001452,2]
[361528476,1747599051150,-1200.13,0.0001452,2]
[361528478,1747599051161,-450.0,0.0001452,2]
[361528480,1747599051170,-450.0,0.0001452,2]
[361528482,1747599051179,-450.0,0.0001452,2]
[361528484,1747599051189,-450.0,0.0001452,2]
[361528486,1747599051198,-605.53,0.0001452,2]
[361528488,1747599051207,-450.0,0.0001452,2]
[361528490,1747599051216,-450.0,0.0001452,2]
[361528492,1747599051226,-450.0,0.0001452,2]
[361528494,1747599051236,-476.55,0.0001452,2]
[361528496,1747599051245,-475.35,0.0001452,2]
[361528498,1747599051255,-450.0,0.0001452,2]
[361528500,1747599051264,-474.34,0.0001452,2]
[361528502,1747599051273,-450.0,0.0001452,2]
[361528504,1747599051283,-450.0,0.0001452,2]
[361528506,1747599051292,-450.0,0.0001452,2]
[361528508,1747599051301,-450.0,0.0001452,2]
[361528510,1747599051310,-808.37,0.0001452,2]
[361528512,1747599051319,-450.0,0.0001452,2]
[361528514,1747599051329,-450.0,0.0001452,2]
[361528516,1747599051338,-450.0,0.0001452,2]
[361528518,1747599051347,-462.86,0.0001452,2]
[361528520,1747599051356,-356.84,0.0001452,2]
[361528522,1747599051366,-450.0,0.0001452,2]
[361528524,1747599051375,-450.0,0.0001452,2]
[361528526,1747599051384,-450.0,0.0001452,2]
[361528528,1747599051393,-450.0,0.0001452,2]
[361528530,1747599051403,-800.52,0.0001452,2]
[361528532,1747599051412,-450.0,0.0001452,2]
[361528534,1747599051421,-1000.0,0.00014521,2]
[361528536,1747599051432,-509.20971916,0.00014521,2]
[361528538,1747599051441,-1000.0,0.00014521,2]
[361528540,1747599051450,-1000.0,0.00014521,2]
[361528542,1747599051459,-1000.0,0.00014521,2]
[361528544,1747599051469,-1000.0,0.00014521,2]
[361528546,1747599051478,-1000.0,0.00014521,2]
[361528548,1747599051487,-1000.0,0.00014521,2]
[361528550,1747599051499,-1000.0,0.00014521,2]
[361528552,1747599051508,-1005.13278578,0.00014521,2]
[361528554,1747599051518,-1000.0,0.00014521,2]
[361528556,1747599051526,-1000.0,0.00014521,2]
[361528561,1747599051568,-1000.0,0.00014521,2]
[361528563,1747599051577,-1000.0,0.00014521,2]
[361528565,1747599051587,-1000.0,0.00014521,2]
[361528567,1747599051598,-1000.0,0.00014521,2]
[361528569,1747599051607,-446.64237324,0.00014521,2]
[361528571,1747599051616,-1000.0,0.00014521,2]
[361528573,1747599051625,-1000.0,0.00014521,2]
[361528575,1747599051634,-1000.0,0.00014521,2]
[361528577,1747599051644,-1000.0,0.00014521,2]
[361528579,1747599051653,-1000.0,0.00014521,2]
[361528581,1747599051663,-1000.0,0.00014521,2]
[361528583,1747599051672,-1000.0,0.00014521,2]
[361528585,1747599051681,-1000.0,0.00014521,2]
[361528587,1747599051692,-327.76580098,0.00014521,2]
[361528589,1747599051705,-1000.0,0.00014521,2]
[361528591,1747599051715,-258.24463679,0.00014521,2]
[361528593,1747599051724,-666.21130884,0.00014521,2]
[361528595,1747599051733,-1000.0,0.00014521,2]
[361528597,1747599051745,-1000.0,0.00014521,2]
[361528599,1747599051754,-1000.0,0.00014521,2]
[361528601,1747599051764,-1000.0,0.00014521,2]
[361528603,1747599051774,-1000.0,0.00014521,2]
[361528605,1747599051784,-1000.0,0.00014521,2]
[361528607,1747599051793,-234.27060696,0.00014521,2]
[361528609,1747599051802,-1000.0,0.00014521,2]
[361528611,1747599051811,-1000.0,0.00014521,2]
[361528613,1747599051821,-1000.0,0.00014521,2]
[361528615,1747599051830,-345.63722686,0.00014521,2]
[361528617,1747599051840,-1000.0,0.00014521,2]
[361528619,1747599051852,-1000.0,0.00014521,2]
[361528621,1747599051861,-1000.0,0.00014521,2]
[361528623,1747599051870,-1000.0,0.00014521,2]
[361528625,1747599051879,-1000.0,0.00014521,2]
[361528627,1747599051888,-1000.0,0.00014521,2]
[361528629,1747599051898,-1000.0,0.00014521,2]
[361528631,1747599051907,-1000.0,0.00014521,2]
[361528633,1747599051917,-450.0,0.00014657,2]
[361528635,1747599051926,-450.0,0.00014657,2]
[361528637,1747599051935,-450.0,0.00014657,2]
[361528639,1747599051945,-450.0,0.00014657,2]
[361528641,1747599051954,-450.0,0.00014657,2]
[361528643,1747599051963,-450.0,0.00014657,2]
[361528645,1747599051973,-450.0,0.00014657,2]
[361528647,1747599051982,-450.0,0.00014657,2]
[361528649,1747599051991,-450.0,0.00014657,2]
[361528651,1747599052000,-231.44,0.00014657,2]
[361528653,1747599052010,-272.8,0.00014657,2]
[361528655,1747599052019,-231.15883634,0.00014657,2]
[361528657,1747599052028,-450.0,0.00014657,2]
[361528659,1747599052038,-450.0,0.00014657,2]
[361528661,1747599052047,-450.0,0.00014657,2]
[361528663,1747599052056,-450.0,0.00014657,2]
[361528665,1747599052065,-450.0,0.00014657,2]
[361528667,1747599052074,-450.0,0.00014657,2]
[361528669,1747599052084,-818.48,0.00014657,2]
[361528671,1747599052093,-551.61780521,0.00014657,2]
[361528673,1747599052107,-450.0,0.00014657,2]
[361528675,1747599052117,-242.27906916,0.00014657,2]
[361528678,1747599052127,-586.03792231,0.00014657,2]
[361528679,1747599052136,-450.0,0.00014657,2]
[361528681,1747599052145,-450.0,0.00014657,2]
[361528683,1747599052154,-450.0,0.00014657,2]
[361528685,1747599052163,-450.0,0.00014657,2]
[361528687,1747599052172,-450.0,0.00014657,2]
[361528689,1747599052182,-450.0,0.00014657,2]
[361528691,1747599052191,-450.0,0.00014657,2]
[361528693,1747599052200,-450.0,0.00014657,2]
[361528695,1747599052209,-450.0,0.00014657,2]
[361528697,1747599052218,-450.0,0.00014657,2]
[361528699,1747599052227,-450.0,0.00014657,2]
[361528701,1747599052238,-450.0,0.00014657,2]
[361528703,1747599052248,-450.0,0.00014657,2]
[361528705,1747599052257,-450.0,0.00014657,2]
[361528707,1747599052267,-450.0,0.00014657,2]
[361528709,1747599052277,-328.76157952,0.00014657,2]
[361528712,1747599052287,-450.0,0.00014657,2]
[361528713,1747599052296,-511.63,0.00014657,2]
[361528715,1747599052305,-450.0,0.00014657,2]
[361528717,1747599052314,-655.93,0.00014657,2]
[361528720,1747599052325,-450.0,0.00014657,2]
[361528722,1747599052335,-1017.79,0.00014657,2]
[361528724,1747599052352,-450.0,0.00014657,2]
[361528726,1747599052363,-511.13,0.00014657,2]
[361528728,1747599052372,-450.0,0.00014657,2]
[361528730,1747599052382,-450.0,0.00014657,2]
[361528732,1747599052392,-450.0,0.00014657,2]
[361528734,1747599052401,-450.0,0.00014657,2]
[361528736,1747599052411,-450.0,0.00014657,2]
[361528738,1747599052422,-452.55,0.00014657,2]
[361528740,1747599052432,-450.0,0.00014657,2]
[361528742,1747599052442,-565.0,0.00014657,2]
[361528744,1747599052452,-3969.3,0.00014657,2]
[361528746,1747599052461,-450.0,0.00014657,2]
[361528748,1747599052471,-638.0,0.00014657,2]
[361528750,1747599052482,-450.0,0.00014657,2]
[361528752,1747599052492,-450.0,0.00014657,2]
[361528754,1747599052503,-450.0,0.00014657,2]
[361528756,1747599052513,-450.0,0.00014657,2]
[361528758,1747599052523,-584.07,0.00014657,2]
[361528760,1747599052534,-2973.48,0.00014657,2]
[361528762,1747599052544,-450.0,0.00014657,2]
[361528764,1747599052553,-516.98,0.00014657,2]
[361528766,1747599052563,-903.99,0.00014657,2]
[361528768,1747599052572,-1439.98,0.00014657,2]
[361528770,1747599052582,-450.0,0.00014657,2]
[361528772,1747599052591,-450.0,0.00014657,2]
[361528774,1747599052605,-450.0,0.00014657,2]
[361528776,1747599052615,-450.0,0.00014657,2]
[361528778,1747599052625,-1871.7,0.00014657,2]
[361528780,1747599052634,-450.0,0.00014657,2]
[361528782,1747599052644,-450.0,0.00014657,2]
[361528784,1747599052654,-450.0,0.00014657,2]
[361528786,1747599052664,-450.0,0.00014657,2]
[361528788,1747599052674,-271.68,0.00014657,2]
[361528790,1747599052684,-658.62,0.00014657,2]
[361528792,1747599052694,-450.0,0.00014657,2]
[361528795,1747599052706,-450.0,0.00014657,2]
[361528796,1747599052716,-450.0,0.00014657,2]
[361528798,1747599052725,-2922.35,0.00014657,2]
[361528801,1747599052735,-547.54,0.00014657,2]
[361528803,1747599052746,-1200.13,0.00014657,2]
[361528805,1747599052755,-450.0,0.00014657,2]
[361528807,1747599052764,-450.0,0.00014657,2]
[361528809,1747599052773,-450.0,0.00014657,2]
[361528810,1747599052783,-450.0,0.00014657,2]
[361528813,1747599052793,-605.53,0.00014657,2]
[361528814,1747599052804,-450.0,0.00014657,2]
[361528817,1747599052813,-450.0,0.00014657,2]
[361528819,1747599052823,-450.0,0.00014657,2]
[361528821,1747599052832,-476.55,0.00014657,2]
[361528822,1747599052841,-475.35,0.00014657,2]
[361528824,1747599052854,-450.0,0.00014657,2]
[361528826,1747599052864,-474.34,0.00014657,2]
[361528829,1747599052874,-450.0,0.00014657,2]
[361528831,1747599052883,-450.0,0.00014657,2]
[361528833,1747599052892,-450.0,0.00014657,2]
[361528835,1747599052901,-450.0,0.00014657,2]
[361528837,1747599052911,-808.37,0.00014657,2]
[361528839,1747599052920,-450.0,0.00014657,2]
[361528841,1747599052930,-450.0,0.00014657,2]
[361528843,1747599052939,-450.0,0.00014657,2]
[361528845,1747599052948,-462.86,0.00014657,2]
[361528847,1747599052957,-450.0,0.00014657,2]
[361528849,1747599052967,-450.0,0.00014657,2]
[361528851,1747599052978,-450.0,0.00014657,2]
[361528853,1747599052987,-450.0,0.00014657,2]
[361528855,1747599052997,-800.52,0.00014657,2]
[361528857,1747599053007,-450.0,0.00014657,2]
[361528859,1747599053017,-2000.0,0.0001473,3]
[361528861,1747599053026,-500.0,0.00014794,2]
[361528863,1747599053035,-450.0,0.00014794,2]
[361528865,1747599053045,-450.0,0.00014794,2]
[361528867,1747599053055,-450.0,0.00014794,2]
[361528869,1747599053066,-450.0,0.00014794,2]
[361528871,1747599053076,-450.0,0.00014794,2]
[361528873,1747599053087,-450.0,0.00014794,2]
[361528875,1747599053102,-539.33,0.00014794,2]
[361528876,1747599053114,-156.54557135,0.00014794,2]
[361528878,1747599053125,-450.0,0.00014794,2]
[361528880,1747599053137,-450.0,0.00014794,2]
[361528882,1747599053149,-450.0,0.00014794,2]
[361528885,1747599053160,-450.0,0.00014794,2]
[361528887,1747599053171,-450.0,0.00014794,2]
[361528889,1747599053182,-450.0,0.00014794,2]
[361528890,1747599053192,-450.0,0.00014794,2]
[361528891,1747599053202,-818.48,0.00014794,2]
[361528892,1747599053212,-450.0,0.00014794,2]
[361528893,1747599053223,-450.0,0.00014794,2]
[361528894,1747599053233,-307.58,0.00014794,2]
[361528895,1747599053243,-450.0,0.00014794,2]
[361528896,1747599053253,-450.0,0.00014794,2]
[361528897,1747599053264,-450.0,0.00014794,2]
[361528898,1747599053274,-450.0,0.00014794,2]
[361528900,1747599053283,-450.0,0.00014794,2]
[361528902,1747599053293,-450.0,0.00014794,2]
[361528904,1747599053302,-450.0,0.00014794,2]
[361528906,1747599053312,-450.0,0.00014794,2]
[361528908,1747599053321,-450.0,0.00014794,2]
[361528910,1747599053330,-450.0,0.00014794,2]
[361528912,1747599053340,-450.0,0.00014794,2]
[361528914,1747599053351,-450.0,0.00014794,2]
[361528916,1747599053361,-450.0,0.00014794,2]
[361528918,1747599053370,-450.0,0.00014794,2]
[361528920,1747599053379,-511.63,0.00014794,2]
[361528922,1747599053388,-450.0,0.00014794,2]
[361528924,1747599053398,-655.93,0.00014794,2]
[361528926,1747599053407,-450.0,0.00014794,2]
[361528928,1747599053417,-1017.79,0.00014794,2]
[361528930,1747599053426,-450.0,0.00014794,2]
[361528932,1747599053435,-511.13,0.00014794,2]
[361528934,1747599053445,-450.0,0.00014794,2]
[361528937,1747599053454,-450.0,0.00014794,2]
[361528939,1747599053464,-450.0,0.00014794,2]
[361528941,1747599053473,-450.0,0.00014794,2]
[361528943,1747599053483,-450.0,0.00014794,2]
[361528945,1747599053492,-452.55,0.00014794,2]
[361528947,1747599053501,-450.0,0.00014794,2]
[361528949,1747599053511,-565.0,0.00014794,2]
[361528951,1747599053520,-3969.3,0.00014794,2]
[361528953,1747599053530,-450.0,0.00014794,2]
[361528955,1747599053539,-638.0,0.00014794,2]
[361528957,1747599053549,-450.0,0.00014794,2]
[361528959,1747599053558,-450.0,0.00014794,2]
[361528961,1747599053570,-450.0,0.00014794,2]
[361528963,1747599053580,-450.0,0.00014794,2]
[361528965,1747599053590,-584.07,0.00014794,2]
[361528968,1747599053603,-2973.48,0.00014794,2]
[361528970,1747599053613,-450.0,0.00014794,2]
[361528972,1747599053623,-516.98,0.00014794,2]
[361528974,1747599053632,-903.99,0.00014794,2]
[361528976,1747599053642,-1439.98,0.00014794,2]
[361528978,1747599053651,-450.0,0.00014794,2]
[361528980,1747599053662,-450.0,0.00014794,2]
[361528982,1747599053671,-450.0,0.00014794,2]
[361528984,1747599053682,-450.0,0.00014794,2]
[361528986,1747599053692,-1871.7,0.00014794,2]
[361528988,1747599053704,-450.0,0.00014794,2]
[361528990,1747599053713,-450.0,0.00014794,2]
[361528992,1747599053723,-450.0,0.00014794,2]
[361528994,1747599053732,-450.0,0.00014794,2]
[361528996,1747599053742,-658.62,0.00014794,2]
[361528998,1747599053753,-177.3,0.00014794,2]
[361529000,1747599053763,-450.0,0.00014794,2]
[361529003,1747599053773,-450.0,0.00014794,2]
[361529005,1747599053786,-2922.35,0.00014794,2]
[361529007,1747599053797,-547.54,0.00014794,2]
[361529009,1747599053806,-1200.13,0.00014794,2]
[361529011,1747599053816,-450.0,0.00014794,2]
[361529013,1747599053826,-450.0,0.00014794,2]
[361529015,1747599053836,-450.0,0.00014794,2]
[361529017,1747599053847,-450.0,0.00014794,2]
[361529019,1747599053860,-605.53,0.00014794,2]
[361529021,1747599053871,-450.0,0.00014794,2]
[361529023,1747599053881,-450.0,0.00014794,2]
[361529025,1747599053892,-450.0,0.00014794,2]
[361529027,1747599053902,-476.55,0.00014794,2]
[361529029,1747599053912,-475.35,0.00014794,2]
[361529031,1747599053922,-450.0,0.00014794,2]
[361529033,1747599053931,-474.34,0.00014794,2]
[361529035,1747599053941,-450.0,0.00014794,2]
[361529037,1747599053951,-450.0,0.00014794,2]
[361529039,1747599053960,-450.0,0.00014794,2]
[361529041,1747599053970,-450.0,0.00014794,2]
[361529043,1747599053979,-808.37,0.00014794,2]
[361529045,1747599053989,-450.0,0.00014794,2]
[361529047,1747599053998,-450.0,0.00014794,2]
[361529049,1747599054008,-450.0,0.00014794,2]
[361529051,1747599054018,-462.86,0.00014794,2]
[361529053,1747599054027,-450.0,0.00014794,2]
[361529055,1747599054037,-450.0,0.00014794,2]
[361529057,1747599054047,-450.0,0.00014794,2]
[361529059,1747599054056,-450.0,0.00014794,2]
[361529061,1747599054066,-800.52,0.00014794,2]
[361529063,1747599054076,-450.0,0.00014794,2]
[361529066,1747599054086,-30596.92336012,0.000149,2]
[361529068,1747599054096,-450.0,0.00014931,2]
[361529070,1747599054108,-450.0,0.00014931,2]
[361529072,1747599054117,-450.0,0.00014931,2]
[361529074,1747599054127,-450.0,0.00014931,2]
[361529076,1747599054136,-450.0,0.00014931,2]
[361529078,1747599054146,-450.0,0.00014931,2]
[361529080,1747599054155,-450.0,0.00014931,2]
[361529082,1747599054165,-450.0,0.00014931,2]
[361529084,1747599054175,-450.0,0.00014931,2]
[361529086,1747599054184,-575.14,0.00014931,2]
[361529088,1747599054193,-450.0,0.00014931,2]
[361529090,1747599054202,-594.51,0.00014931,2]
[361529092,1747599054212,-450.0,0.00014931,2]
[361529094,1747599054221,-818.48,0.00014931,2]
[361529096,1747599054231,-450.0,0.00014931,2]
[361529099,1747599054241,-450.0,0.00014931,2]
[361529101,1747599054250,-450.0,0.00014931,2]
[361529103,1747599054260,-450.0,0.00014931,2]
[361529105,1747599054269,-450.0,0.00014931,2]
[361529107,1747599054278,-450.0,0.00014931,2]
[361529109,1747599054288,-450.0,0.00014931,2]
[361529111,1747599054297,-450.0,0.00014931,2]
[361529113,1747599054307,-450.0,0.00014931,2]
[361529115,1747599054316,-450.0,0.00014931,2]
[361529117,1747599054326,-450.0,0.00014931,2]
[361529119,1747599054335,-450.0,0.00014931,2]
[361529121,1747599054345,-450.0,0.00014931,2]
[361529123,1747599054357,-450.0,0.00014931,2]
[361529125,1747599054366,-449.03,0.00014931,2]
[361529127,1747599054375,-450.0,0.00014931,2]
[361529129,1747599054385,-511.63,0.00014931,2]
[361529131,1747599054394,-450.0,0.00014931,2]
[361529133,1747599054404,-655.93,0.00014931,2]
[361529135,1747599054413,-450.0,0.00014931,2]
[361529137,1747599054423,-1017.79,0.00014931,2]
[361529139,1747599054433,-450.0,0.00014931,2]
[361529141,1747599054442,-511.13,0.00014931,2]
[361529144,1747599054452,-450.0,0.00014931,2]
[361529158,1747599054572,-450.0,0.00014931,2]
[361529160,1747599054583,-450.0,0.00014931,2]
[361529162,1747599054594,-450.0,0.00014931,2]
[361529164,1747599054605,-450.0,0.00014931,2]
[361529166,1747599054615,-452.55,0.00014931,2]
[361529168,1747599054624,-450.0,0.00014931,2]
[361529170,1747599054634,-565.0,0.00014931,2]
[361529172,1747599054643,-3969.3,0.00014931,2]
[361529174,1747599054653,-450.0,0.00014931,2]
[361529176,1747599054662,-638.0,0.00014931,2]
[361529178,1747599054672,-450.0,0.00014931,2]
[361529180,1747599054681,-164.21,0.00014931,2]
[361529182,1747599054691,-450.0,0.00014931,2]
[361529184,1747599054701,-450.0,0.00014931,2]
[361529186,1747599054712,-584.07,0.00014931,2]
[361529188,1747599054722,-2973.48,0.00014931,2]
[361529190,1747599054732,-450.0,0.00014931,2]
[361529192,1747599054741,-516.98,0.00014931,2]
[361529194,1747599054751,-903.99,0.00014931,2]
[361529196,1747599054761,-1439.98,0.00014931,2]
[361529198,1747599054770,-450.0,0.00014931,2]
[361529200,1747599054779,-450.0,0.00014931,2]